fUST/lending_fUST_20251115
["ID","MTS","AMOUNT","RATE_DAILY","PERIOD"]
[394026314,1763200289963,-500.0,0.00050136,120]
[394026315,1763200289971,-500.0,0.00050136,120]
[394026316,1763200289980,-500.0,0.00050136,120]
[394026317,1763200289989,-500.0,0.00050136,120]
[394026318,1763200290000,-4568.1,0.00050136,3]
[394026319,1763200290009,-500.0,0.00050136,120]
[394026320,1763200290018,-500.0,0.00050136,120]
[394026321,1763200290027,-500.0,0.00050136,120]
[394026322,1763200290036,-1131.39,0.00050136,120]
[394026323,1763200290045,-500.0,0.00050136,120]
[394026324,1763200290054,-500.0,0.00050136,120]
[394026325,1763200290063,-500.0,0.00050136,120]
[394026326,1763200290072,-524.36707058,0.00050136,120]
[394026327,1763200290081,-500.0,0.00050136,120]
[394026328,1763200290090,-500.0,0.00050136,120]
[394026329,1763200290099,-500.0,0.00050136,120]
[394026330,1763200290108,-797.3,0.00050136,120]
[394026331,1763200290117,-500.0,0.00050136,120]
[394026332,1763200290126,-500.0,0.00050136,120]
[394026333,1763200290136,-849.34,0.00050136,120]
[394026334,1763200290145,-529.92863439,0.00050136,120]
[394026335,1763200290154,-500.0,0.00050136,120]
[394026336,1763200290163,-500.0,0.00050136,120]
[394026337,1763200290172,-603.27503762,0.00050136,120]
[394026338,1763200290181,-500.0,0.00050136,120]
[394026339,1763200290190,-577.74,0.00050136,120]
[394026340,1763200290200,-501.94159133,0.00050136,120]
[394026341,1763200290213,-647.88,0.00050136,120]
[394026342,1763200290222,-500.0,0.00050136,30]
[394026343,1763200290230,-500.0,0.00050136,120]
[394026344,1763200290239,-566.74,0.00050136,120]
[394026345,1763200290252,-636.73,0.00050136,120]
[394026346,1763200290261,-500.0,0.00050136,30]
[394026347,1763200290270,-500.0,0.00050136,120]
[394026348,1763200290281,-500.0,0.00050136,120]
[394026349,1763200290290,-500.0,0.00050136,120]
[394026350,1763200290299,-1133.68,0.00050136,120]
[394026351,1763200290308,-500.0,0.00050136,120]
[394026352,1763200290317,-500.0,0.00050136,120]
[394026353,1763200290326,-1012.59,0.00050136,120]
[394026354,1763200290335,-800.22,0.00050136,120]
[394026355,1763200290344,-500.0,0.00050136,120]
[394026356,1763200290352,-500.0,0.00050136,120]
[394026357,1763200290361,-1236.1,0.00050136,120]
[394026358,1763200290370,-500.0,0.00050136,120]
[394026359,1763200290379,-815.37,0.00050136,120]
[394026360,1763200290388,-502.54765373,0.00050136,120]
[394026361,1763200290397,-500.0,0.00050136,120]
[394026362,1763200290406,-500.0,0.00050136,120]
[394026363,1763200290415,-500.0,0.00050136,120]
[394026364,1763200290424,-500.0,0.00050136,120]
[394026365,1763200290433,-500.0,0.00050136,120]
[394026366,1763200290442,-543.43673394,0.00050136,120]
[394026367,1763200290451,-500.0,0.00050136,120]
[394026368,1763200290461,-500.0,0.00050136,120]
[394026369,1763200290471,-502.41561236,0.00050136,120]
[394026370,1763200290480,-500.0,0.00050136,120]
[394026371,1763200290489,-617.48,0.00050136,120]
[394026372,1763200290499,-1270.32,0.00050136,120]
[394026373,1763200290509,-500.0,0.00050136,120]
[394026374,1763200290519,-500.0,0.00050136,120]
[394026375,1763200290529,-606.55046155,0.00050136,120]
[394026376,1763200290538,-628.88284092,0.00050136,10]
[394026377,1763200290548,-2708.03,0.00050136,120]
[394026378,1763200290557,-502.53218842,0.00050136,120]
[394026379,1763200290566,-500.0,0.00050136,120]
[394026380,1763200290575,-500.0,0.00050136,120]
[394026381,1763200290585,-500.0,0.00050136,120]
[394026382,1763200290594,-500.0,0.00050136,120]
[394026383,1763200290603,-500.0,0.00050136,120]
[394026384,1763200290613,-500.0,0.00050136,120]
[394026385,1763200290623,-500.0,0.00050136,120]
[394026386,1763200290632,-504.64536683,0.00050136,120]
[394026387,1763200290641,-500.0,0.00050136,120]
[394026388,1763200290651,-1700.39,0.00050136,120]
[394026389,1763200290661,-845.92,0.00050136,120]
[394026390,1763200290670,-500.0,0.00050136,120]
[394026391,1763200290680,-590.7,0.00050136,120]
[394026392,1763200290689,-500.0,0.00050136,120]
[394026393,1763200290699,-500.0,0.00050136,120]
[394026394,1763200290708,-500.0,0.00050136,120]
[394026395,1763200290718,-500.0,0.00050136,120]
[394026396,1763200290728,-500.0,0.00050136,7]
[394026397,1763200290738,-500.0,0.00050136,120]
[394026398,1763200290747,-500.0,0.00050136,120]
[394026399,1763200290759,-500.0,0.00050136,120]
[394026400,1763200290768,-500.0,0.00050136,120]
[394026401,1763200290777,-505.4651958,0.00050136,120]
[394026402,1763200290787,-500.0,0.00050136,120]
[394026403,1763200290798,-500.0,0.00050136,120]
[394026404,1763200290807,-503.24528218,0.00050136,120]
[394026405,1763200290816,-500.0,0.00050136,120]
[394026406,1763200290828,-500.0,0.00050136,120]
[394026407,1763200290838,-500.0,0.00050136,120]
[394026408,1763200290847,-576.07,0.00050136,120]
[394026409,1763200290858,-504.87342376,0.00050136,120]
[394026410,1763200290869,-528.05163627,0.00050136,120]
[394026411,1763200290878,-500.0,0.00050136,120]
[394026412,1763200290887,-500.0,0.00050136,120]
[394026413,1763200290897,-500.0,0.00050136,120]
[394026414,1763200290906,-500.0,0.00050136,120]
[394026415,1763200290916,-201.4198175,0.00050136,120]
[394026416,1763200290926,-509.5507053,0.00050136,120]
[394026417,1763200290936,-500.0,0.00050136,120]
[394026418,1763200290945,-580.02,0.00050136,120]
[394026419,1763200290955,-500.0,0.00050136,120]
[394026420,1763200290965,-500.0,0.00050136,120]
[394026421,1763200290974,-500.0,0.00050136,2]
[394026422,1763200290984,-1000.0,0.00050136,2]
[394026423,1763200290993,-221.6,0.00050136,120]
[394026424,1763200291004,-1000.0,0.00050136,2]
[394026425,1763200291014,-500.0,0.00050136,14]
[394026426,1763200291023,-500.0,0.00050136,120]
[394026427,1763200291033,-500.0,0.00050136,120]
[394026428,1763200291042,-812.44,0.00050136,2]
[394026429,1763200291053,-557.41,0.00050136,120]
[394026430,1763200291062,-1000.0,0.00050136,30]
[394026431,1763200291071,-5000.0,0.000502,120]
[394026432,1763200291080,-5000.0,0.000502,120]
[394026433,1763200291090,-5000.0,0.00050216,120]
[394026434,1763200291099,-5000.0,0.00050216,120]
[394026435,1763200291109,-160.0,0.00050241,11]
[394026436,1763200291118,-158.78343214,0.00050301,30]
[394026437,1763200291128,-907.43424874,0.00050399,2]
[394026438,1763200291137,-500.0,0.0005041,120]
[394026439,1763200291146,-501.63420042,0.0005041,120]
[394026440,1763200291156,-687.74,0.0005041,120]
[394026441,1763200291165,-500.0,0.0005041,120]
[394026442,1763200291175,-500.0,0.0005041,120]
[394026443,1763200291184,-554.45,0.0005041,120]
[394026444,1763200291193,-500.0,0.0005041,120]
[394026445,1763200291211,-500.0,0.0005041,120]
[394026446,1763200291222,-500.0,0.0005041,120]
[394026447,1763200291231,-565.83979974,0.0005041,120]
[394026448,1763200291242,-500.0,0.0005041,120]
[394026449,1763200291253,-500.0,0.0005041,120]
[394026450,1763200291263,-582.92,0.0005041,120]
[394026451,1763200291273,-500.0,0.0005041,120]
[394026452,1763200291282,-500.0,0.0005041,120]
[394026453,1763200291292,-503.73960888,0.0005041,120]
[394026454,1763200291301,-790.87,0.0005041,120]
[394026455,1763200291311,-629.47,0.0005041,120]
[394026456,1763200291321,-500.0,0.0005041,120]
[394026457,1763200291330,-509.57136657,0.0005041,120]
[394026458,1763200291340,-500.0,0.0005041,120]
[394026459,1763200291349,-504.02426255,0.0005041,30]
[394026460,1763200291359,-500.0,0.0005041,120]
[394026461,1763200291369,-673.94,0.0005041,120]
[394026462,1763200291378,-500.0,0.0005041,120]
[394026463,1763200291388,-500.0,0.0005041,120]
[394026464,1763200291398,-500.0,0.0005041,120]
[394026465,1763200291407,-500.0,0.0005041,120]
[394026466,1763200291416,-758.17,0.0005041,120]
[394026467,1763200291426,-590.85,0.0005041,120]
[394026468,1763200291435,-500.0,0.0005041,120]
[394026469,1763200291444,-500.0,0.0005041,120]
[394026470,1763200291454,-500.0,0.0005041,120]
[394026471,1763200291463,-731.68,0.0005041,120]
[394026472,1763200291473,-500.0,0.0005041,120]
[394026473,1763200291482,-500.0,0.0005041,120]
[394026474,1763200291491,-571.3,0.0005041,120]
[394026475,1763200291503,-500.0,0.0005041,120]
[394026476,1763200291513,-500.0,0.0005041,120]
[394026477,1763200291522,-500.0,0.0005041,120]
[394026478,1763200291532,-500.0,0.0005041,120]
[394026479,1763200291542,-500.0,0.0005041,120]
[394026480,1763200291552,-500.0,0.0005041,120]
[394026481,1763200291562,-1090.76,0.0005041,7]
[394026482,1763200291572,-500.0,0.0005041,120]
[394026483,1763200291583,-500.0,0.0005041,120]
[394026484,1763200291595,-503.12037797,0.0005041,120]
[394026485,1763200291605,-500.0,0.0005041,120]
[394026486,1763200291615,-500.0,0.0005041,120]
[394026487,1763200291625,-500.0,0.0005041,120]
[394026488,1763200291634,-3400.85,0.0005041,2]
[394026489,1763200291644,-500.0,0.0005041,120]
[394026490,1763200291654,-500.0,0.0005041,120]
[394026491,1763200291664,-500.0,0.0005041,120]
[394026492,1763200291674,-500.0,0.0005041,120]
[394026493,1763200291684,-1174.97,0.0005041,120]
[394026494,1763200291694,-500.0,0.0005041,120]
[394026495,1763200291705,-500.0,0.0005041,120]
[394026496,1763200291715,-500.0,0.0005041,120]
[394026497,1763200291725,-500.0,0.0005041,120]
[394026498,1763200291735,-618.7,0.0005041,120]
[394026499,1763200291745,-500.0,0.0005041,120]
[394026500,1763200291758,-500.0,0.0005041,120]
[394026501,1763200291767,-500.0,0.0005041,120]
[394026502,1763200291780,-500.0,0.0005041,120]
[394026503,1763200291790,-506.21,0.0005041,120]
[394026504,1763200291799,-500.0,0.0005041,120]
[394026505,1763200291809,-500.0,0.0005041,120]
[394026506,1763200291819,-500.0,0.0005041,120]
[394026507,1763200291829,-536.43,0.0005041,120]
[394026508,1763200291839,-505.46,0.0005041,120]
[394026509,1763200291848,-500.0,0.0005041,120]
[394026510,1763200291858,-500.0,0.0005041,120]
[394026511,1763200291869,-500.0,0.0005041,120]
[394026512,1763200291879,-566.44,0.0005041,120]
[394026513,1763200291888,-500.0,0.0005041,120]
[394026514,1763200291898,-500.0,0.0005041,120]
[394026515,1763200291908,-500.0,0.0005041,120]
[394026516,1763200291917,-829.99,0.0005041,120]
[394026517,1763200291927,-500.0,0.0005041,120]
[394026518,1763200291936,-500.0,0.0005041,120]
[394026519,1763200291945,-500.0,0.0005041,120]
[394026520,1763200291955,-500.0,0.0005041,120]
[394026521,1763200291966,-500.0,0.0005041,120]
[394026522,1763200291975,-500.0,0.0005041,120]
[394026523,1763200291985,-500.0,0.0005041,120]
[394026524,1763200291995,-500.0,0.0005041,120]
[394026525,1763200292007,-500.0,0.0005041,120]
[394026526,1763200292017,-500.0,0.0005041,120]
[394026527,1763200292027,-500.0,0.0005041,120]
[394026528,1763200292037,-546.38,0.0005041,120]
[394026529,1763200292047,-500.0,0.0005041,120]
[394026530,1763200292058,-785.26,0.0005041,120]
[394026531,1763200292068,-515.50549898,0.0005041,120]
[394026532,1763200292078,-500.0,0.0005041,120]
[394026533,1763200292088,-500.0,0.0005041,120]
[394026534,1763200292097,-500.0,0.0005041,120]
[394026535,1763200292106,-500.0,0.0005041,120]
[394026536,1763200292116,-500.0,0.0005041,120]
[394026537,1763200292125,-500.0,0.0005041,120]
[394026538,1763200292135,-500.0,0.0005041,120]
[394026539,1763200292144,-265.65008106,0.0005041,120]
[394026540,1763200292154,-500.0,0.0005041,120]
[394026541,1763200292163,-518.4783869,0.0005041,120]
[394026542,1763200292173,-500.0,0.0005041,120]
[394026543,1763200292183,-500.0,0.0005041,120]
[394026544,1763200292192,-468.84394615,0.0005041,120]
[394026545,1763200292207,-500.0,0.0005041,120]
[394026546,1763200292216,-500.0,0.0005041,120]
[394026547,1763200292225,-390.44288784,0.0005041,120]
[394026548,1763200292236,-500.0,0.0005041,120]
[394026549,1763200292247,-500.0,0.0005041,120]
[394026550,1763200292257,-553.9345744,0.0005041,120]
[394026551,1763200292268,-500.0,0.0005041,120]
[394026552,1763200292278,-500.0,0.0005041,120]
[394026553,1763200292288,-500.0,0.0005041,120]
[394026554,1763200292299,-502.64376313,0.0005041,120]
[394026555,1763200292308,-509.39685017,0.0005041,120]
[394026556,1763200292319,-500.0,0.0005041,120]
[394026557,1763200292329,-500.0,0.0005041,7]
[394026558,1763200292339,-500.0,0.0005041,120]
[394026559,1763200292348,-500.0,0.0005041,120]
[394026560,1763200292358,-393.03602772,0.0005041,120]
[394026561,1763200292367,-500.0,0.0005041,120]
[394026562,1763200292376,-500.0,0.0005041,120]
[394026563,1763200292386,-579.24233354,0.0005041,120]
[394026564,1763200292395,-500.0,0.0005041,120]
[394026565,1763200292404,-500.0,0.0005041,120]
[394026566,1763200292414,-577.95559724,0.0005041,120]
[394026567,1763200292423,-500.0,0.0005041,120]
[394026568,1763200292433,-1165.61,0.0005041,120]
[394026569,1763200292442,-500.0,0.0005041,120]
[394026570,1763200292452,-524.6188239,0.0005041,120]
[394026571,1763200292462,-500.0,0.0005041,120]
[394026572,1763200292472,-629.76,0.0005041,120]
[394026573,1763200292481,-500.0,0.0005041,120]
[394026574,1763200292491,-484.31348811,0.0005041,120]
[394026575,1763200292500,-511.51,0.0005041,2]
[394026576,1763200292512,-500.0,0.0005041,120]
[394026577,1763200292521,-500.0,0.0005041,120]
[394026578,1763200292531,-538.98975506,0.0005041,120]
[394026579,1763200292540,-500.0,0.0005041,120]
[394026580,1763200292550,-500.0,0.0005041,120]
[394026581,1763200292561,-500.0,0.0005041,120]
[394026582,1763200292570,-506.86348031,0.0005041,120]
[394026583,1763200292580,-500.0,0.0005041,120]
[394026584,1763200292590,-500.0,0.0005041,120]
[394026585,1763200292600,-515.28,0.0005041,120]
[394026586,1763200292609,-263.81037256,0.0005041,120]
[394026587,1763200292620,-320.58635571,0.0005041,120]
[394026588,1763200292630,-500.0,0.0005041,120]
[394026589,1763200292640,-500.0,0.0005041,120]
[394026590,1763200292650,-426.34713875,0.0005041,120]
[394026591,1763200292660,-500.0,0.0005041,120]
[394026592,1763200292670,-500.0,0.0005041,2]
[394026593,1763200292680,-500.0,0.0005041,120]
[394026594,1763200292690,-500.0,0.0005041,120]
[394026595,1763200292700,-500.0,0.0005041,120]
[394026596,1763200292710,-958.77,0.0005041,120]
[394026597,1763200292870,-503.12048294,0.0005041,120]
[394026598,1763200292880,-500.0,0.0005041,120]
[394026599,1763200292889,-500.0,0.0005041,120]
[394026600,1763200292898,-503.32629948,0.0005041,120]
[394026601,1763200292907,-500.0,0.0005041,120]
[394026602,1763200292917,-500.0,0.0005041,120]
[394026603,1763200292926,-558.84211129,0.0005041,120]
[394026604,1763200292935,-500.0,0.0005041,120]
[394026605,1763200292944,-500.0,0.0005041,120]
[394026606,1763200292954,-500.0,0.0005041,120]
[394026607,1763200292963,-500.0,0.0005041,120]
[394026608,1763200292972,-500.0,0.0005041,120]
[394026609,1763200292981,-500.0,0.0005041,120]
[394026610,1763200292990,-500.0,0.0005041,120]
[394026611,1763200292998,-500.0,0.0005041,120]
[394026612,1763200293012,-525.8735876,0.0005041,120]
[394026613,1763200293021,-500.0,0.0005041,120]
[394026614,1763200293030,-500.0,0.0005041,120]
[394026615,1763200293039,-500.0,0.0005041,120]
[394026616,1763200293049,-500.0,0.0005041,120]
[394026617,1763200293058,-500.0,0.0005041,120]
[394026618,1763200293067,-500.0,0.0005041,120]
[394026619,1763200293076,-502.65162628,0.0005041,120]
[394026620,1763200293085,-500.0,0.0005041,120]
[394026621,1763200293094,-500.0,0.0005041,120]
[394026622,1763200293103,-501.71192421,0.0005041,120]
[394026623,1763200293112,-500.0,0.0005041,120]
[394026624,1763200293121,-500.0,0.0005041,120]
[394026625,1763200293130,-500.0,0.0005041,120]
[394026626,1763200293139,-500.0,0.0005041,120]
[394026627,1763200293147,-500.0,0.0005041,120]
[394026628,1763200293156,-500.0,0.0005041,120]
[394026629,1763200293165,-531.24,0.0005041,120]
[394026630,1763200293173,-500.0,0.0005041,120]
[394026631,1763200293183,-500.0,0.0005041,120]
[394026632,1763200293191,-504.31249809,0.0005041,120]
[394026633,1763200293204,-1312.52,0.0005041,120]
[394026634,1763200293213,-666.72,0.0005041,120]
[394026635,1763200293221,-500.0,0.0005041,120]
[394026636,1763200293230,-500.0,0.0005041,120]
[394026637,1763200293239,-500.0,0.0005041,120]
[394026638,1763200293249,-500.0,0.0005041,120]
[394026639,1763200293259,-500.0,0.0005041,120]
[394026640,1763200293269,-500.0,0.0005041,120]
[394026641,1763200293278,-500.0,0.0005041,120]
[394026642,1763200293290,-500.0,0.0005041,120]
[394026643,1763200293299,-500.0,0.0005041,120]
[394026644,1763200293308,-505.97,0.0005041,120]
[394026645,1763200293317,-500.0,0.0005041,120]
[394026646,1763200293326,-507.65,0.0005041,2]
[394026647,1763200293335,-500.0,0.0005041,120]
[394026648,1763200293344,-655.84,0.0005041,120]
[394026649,1763200293353,-500.0,0.0005041,120]
[394026650,1763200293362,-500.0,0.0005041,120]
[394026651,1763200293371,-500.0,0.0005041,120]
[394026652,1763200293380,-566.68,0.0005041,120]
[394026653,1763200293389,-500.0,0.0005041,120]
[394026654,1763200293398,-525.44356741,0.0005041,120]
[394026655,1763200293407,-500.0,0.0005041,120]
[394026656,1763200293416,-629.45,0.0005041,120]
[394026657,1763200293425,-500.0,0.0005041,120]
[394026658,1763200293434,-500.0,0.0005041,120]
[394026659,1763200293444,-500.0,0.0005041,120]
[394026660,1763200293453,-199.97237076,0.0005041,120]
[394026661,1763200293462,-532.44,0.0005041,120]
[394026662,1763200293471,-517.42,0.0005041,120]
[394026663,1763200293480,-500.0,0.0005041,120]
[394026664,1763200293489,-500.0,0.0005041,120]
[394026665,1763200293498,-500.0,0.0005041,120]
[394026666,1763200293509,-503.22958123,0.0005041,120]
[394026667,1763200293518,-500.0,0.0005041,120]
[394026668,1763200293527,-512.08,0.0005041,120]
[394026669,1763200293536,-948.59,0.0005041,120]
[394026670,1763200293545,-500.0,0.0005041,120]
[394026671,1763200293554,-500.0,0.0005041,120]
[394026672,1763200293563,-500.0,0.0005041,120]
[394026673,1763200293572,-507.91197277,0.0005041,120]
[394026674,1763200293581,-500.0,0.0005041,120]
[394026675,1763200293590,-1011.89,0.0005041,120]
[394026676,1763200293599,-500.0,0.0005041,120]
[394026677,1763200293609,-875.77,0.0005041,120]
[394026678,1763200293618,-520.27172415,0.0005041,120]
[394026679,1763200293627,-500.0,0.0005041,120]
[394026680,1763200293637,-500.0,0.0005041,120]
[394026681,1763200293646,-500.0,0.0005041,120]
[394026682,1763200293655,-502.96219945,0.0005041,120]
[394026683,1763200293664,-500.0,0.0005041,120]
[394026684,1763200293673,-500.0,0.0005041,120]
[394026685,1763200293682,-500.0,0.0005041,120]
[394026686,1763200293691,-500.0,0.0005041,120]
[394026687,1763200293700,-500.0,0.0005041,120]
[394026688,1763200293710,-500.0,0.0005041,120]
[394026689,1763200293719,-604.95,0.0005041,120]
[394026690,1763200293728,-500.0,0.0005041,120]
[394026691,1763200293738,-500.0,0.0005041,120]
[394026692,1763200293746,-500.0,0.0005041,120]
[394026693,1763200293757,-502.41096537,0.0005041,120]
[394026694,1763200293766,-500.0,0.0005041,120]
[394026695,1763200293775,-564.94,0.0005041,120]
[394026696,1763200293784,-500.0,0.0005041,120]
[394026697,1763200293794,-500.0,0.0005041,120]
[394026698,1763200293803,-500.0,0.0005041,120]
[394026699,1763200293812,-228.81876428,0.0005041,120]
[394026700,1763200293822,-1119.68,0.0005041,120]
[394026701,1763200293831,-500.0,0.0005041,120]
[394026702,1763200293840,-500.0,0.0005041,120]
[394026703,1763200293849,-500.0,0.0005041,120]
[394026704,1763200293858,-1259.05,0.0005041,120]
[394026705,1763200293867,-865.15,0.0005041,120]
[394026706,1763200293876,-500.0,0.0005041,120]
[394026707,1763200293885,-500.0,0.0005041,2]
[394026708,1763200293894,-502.81024055,0.0005041,120]
[394026709,1763200293903,-955.73,0.0005041,120]
[394026710,1763200293912,-500.0,0.0005041,120]
[394026711,1763200293920,-500.0,0.0005041,120]
[394026712,1763200293930,-503.15205836,0.0005041,120]
[394026713,1763200293942,-500.0,0.0005041,120]
[394026714,1763200293951,-500.0,0.0005041,120]
[394026715,1763200293961,-500.0,0.0005041,21]
[394026716,1763200293972,-500.0,0.0005041,120]
[394026717,1763200293980,-505.15377895,0.0005041,120]
[394026718,1763200293990,-500.0,0.0005041,120]
[394026719,1763200293999,-500.0,0.0005041,120]
[394026720,1763200294008,-500.0,0.0005041,120]
[394026721,1763200294018,-1298.83,0.0005041,120]
[394026722,1763200294027,-521.77370103,0.0005041,7]
[394026723,1763200294037,-500.0,0.0005041,120]
[394026724,1763200294047,-500.0,0.0005041,120]
[394026725,1763200294057,-687.91,0.0005041,120]
[394026726,1763200294067,-500.0,0.0005041,120]
[394026727,1763200294078,-500.0,0.0005041,120]
[394026728,1763200294087,-500.0,0.0005041,120]
[394026729,1763200294095,-500.0,0.0005041,120]
[394026730,1763200294105,-500.0,0.0005041,120]
[394026731,1763200294114,-500.0,0.0005041,120]
[394026732,1763200294125,-1584.66,0.0005041,120]
[394026733,1763200294135,-319.20670171,0.0005041,120]
[394026734,1763200294144,-500.0,0.0005041,120]
[394026735,1763200294154,-625.34,0.0005041,120]
[394026736,1763200294163,-500.0,0.0005041,120]
[394026737,1763200294172,-505.63593619,0.0005041,120]
[394026738,1763200294181,-500.0,0.0005041,120]
[394026739,1763200294191,-500.0,0.0005041,120]
[394026740,1763200294201,-626.26,0.0005041,120]
[394026741,1763200294211,-500.0,0.0005041,120]
[394026742,1763200294221,-500.0,0.0005041,120]
[394026743,1763200294231,-500.0,0.0005041,120]
[394026744,1763200294240,-776.15,0.0005041,120]
[394026745,1763200294250,-500.0,0.0005041,120]
[394026746,1763200294260,-1059.33,0.0005041,120]
[394026747,1763200294269,-500.0,0.0005041,120]
[394026748,1763200294279,-2689.19,0.0005041,120]
[394026749,1763200294289,-500.0,0.0005041,120]
[394026750,1763200294298,-500.0,0.0005041,120]
[394026751,1763200294307,-1158.62,0.0005041,120]
[394026752,1763200294316,-520.26,0.0005041,120]
[394026753,1763200294326,-500.0,0.0005041,120]
[394026754,1763200294335,-500.0,0.0005041,120]
[394026755,1763200294343,-511.10986269,0.0005041,120]
[394026756,1763200294352,-777.19,0.0005041,120]
[394026757,1763200294362,-500.0,0.0005041,120]
[394026758,1763200294371,-500.0,0.0005041,120]
[394026759,1763200294380,-500.0,0.0005041,120]
[394026760,1763200294388,-500.0,0.0005041,120]
[394026761,1763200294397,-500.0,0.0005041,120]
[394026762,1763200294406,-500.0,0.0005041,120]
[394026763,1763200294415,-500.0,0.0005041,120]
[394026764,1763200294424,-500.0,0.0005041,120]
[394026765,1763200294434,-1619.88,0.0005041,30]
[394026766,1763200294443,-1089.69,0.0005041,120]
[394026767,1763200294453,-504.18849905,0.0005041,120]
[394026768,1763200294463,-500.0,0.0005041,120]
[394026769,1763200294472,-576.07,0.0005041,120]
[394026770,1763200294482,-500.0,0.0005041,120]
[394026771,1763200294492,-500.0,0.0005041,120]
[394026772,1763200294502,-1298.65,0.0005041,120]
[394026773,1763200294511,-527.42,0.0005041,120]
[394026774,1763200294520,-500.0,0.0005041,120]
[394026775,1763200294529,-2380.54,0.0005041,120]
[394026776,1763200294539,-1477.9,0.0005041,120]
[394026777,1763200294547,-500.0,0.0005041,120]
[394026778,1763200294557,-500.0,0.0005041,120]
[394026779,1763200294566,-500.0,0.0005041,120]
[394026780,1763200294575,-500.0,0.0005041,120]
[394026781,1763200294584,-745.02,0.0005041,120]
[394026782,1763200294593,-979.94,0.0005041,120]
[394026783,1763200294602,-500.0,0.0005041,120]
[394026784,1763200294611,-500.41,0.0005041,120]
[394026785,1763200294620,-500.0,0.0005041,120]
[394026786,1763200294630,-500.0,0.0005041,120]
[394026787,1763200294639,-279.81428593,0.0005041,120]
[394026788,1763200294648,-500.0,0.0005041,120]
[394026789,1763200294656,-500.0,0.0005041,120]
[394026790,1763200294666,-507.72,0.0005041,120]
[394026791,1763200294675,-500.0,0.0005041,120]
[394026792,1763200294684,-500.0,0.0005041,120]
[394026793,1763200294693,-539.7,0.0005041,120]
[394026794,1763200294702,-500.0,0.0005041,120]
[394026795,1763200294711,-789.21,0.0005041,120]
[394026796,1763200294721,-500.0,0.0005041,120]
[394026797,1763200294730,-500.0,0.0005041,120]
[394026798,1763200294740,-500.0,0.0005041,120]
[394026799,1763200294749,-520.56154464,0.0005041,120]
[394026800,1763200294759,-937.06,0.0005041,120]
[394026801,1763200294769,-500.0,0.0005041,120]
[394026802,1763200294778,-500.0,0.0005041,120]
[394026803,1763200294787,-523.49,0.0005041,120]
[394026804,1763200294797,-571.26,0.0005041,120]
[394026805,1763200294806,-500.0,0.0005041,120]
[394026806,1763200294815,-500.0,0.0005041,120]
[394026807,1763200294826,-840.74,0.0005041,120]
[394026808,1763200294836,-500.0,0.0005041,120]
[394026809,1763200294846,-839.73,0.0005041,120]
[394026810,1763200294857,-500.0,0.0005041,120]
[394026811,1763200294867,-500.0,0.0005041,120]
[394026812,1763200294877,-548.3,0.0005041,120]
[394026813,1763200294886,-500.0,0.0005041,120]